lending/lending_fUSD_20250920
["ID","MTS","AMOUNT","RATE_DAILY","PERIOD"]
[386543402,1758373832337,-291.24559616,0.00019833,2]
[386543403,1758373832346,-200.0,0.0001984,2]
[386543405,1758373832356,-1092.5386425,0.00019851,2]
[386543408,1758373832379,-1887.61625805,0.00019851,2]
[386543478,1758373837888,-305.37387015,0.00019851,2]
[386543479,1758373838024,-752.74587165,0.00019851,2]
[386543480,1758373838034,-255.73736325,0.00019851,2]
[386543481,1758373838045,-3782.5372791,0.00019851,2]
[386543482,1758373838055,-1622.68430174,0.00019861,2]
[386543483,1758373838110,-766.94850671,0.00019861,2]
[386543484,1758373838134,-656.63434667,0.00019861,2]
[386543485,1758373838155,-614.68697519,0.00019861,2]
[386543486,1758373838188,-377.32051204,0.00019861,2]
[386543488,1758373838198,-2319.6057397,0.00019888,2]
[386543502,1758373840243,-747.72204404,0.00019888,2]
[386543503,1758373840254,-970.94685861,0.00019888,2]
[386543504,1758373840264,-4038.27464235,0.00019893,2]
[386543505,1758373840274,-150.0,0.000199,2]
[386543506,1758373840284,-437.63,0.000199,2]
[386543507,1758373840293,-152.15,0.000199,2]
[386543508,1758373840303,-29.49849904,0.000199,2]
[386543509,1758373840314,-843.95042138,0.000199,2]
[386543510,1758373840324,-500.0,0.000199,7]
[386543511,1758373840333,-746.4585552,0.000199,2]
[386543512,1758373840382,-1124.4614448,0.000199,2]
[386543513,1758373840392,-2382.66,0.00019902,2]
[386543514,1758373840402,-82.41531614,0.00019902,2]
[386543515,1758373840414,-67.58468386,0.00019902,2]
[386543516,1758373840427,-150.0,0.00019902,2]
[386543517,1758373840436,-1523.46531614,0.00019918,2]
[386543518,1758373840499,-1357.85768386,0.00019918,2]
[386543519,1758373840509,-174.80184032,0.00019918,2]
[386543520,1758373840589,-459.38071184,0.00019918,2]
[386543521,1758373840613,-263.81744784,0.00019918,2]
[386543522,1758373840622,-4229.0,0.00019918,2]
[386543523,1758373840632,-1178.0,0.00019918,2]
[386543524,1758373840642,-500.0,0.00019973,2]
[386543525,1758373840651,-500.0,0.00019973,2]
[386543526,1758373840660,-500.0,0.00019973,2]
[386543527,1758373840670,-500.0,0.00019973,2]
[386543528,1758373840679,-502.06339414,0.00019973,2]
[386543529,1758373840688,-500.0,0.00019973,2]
[386543530,1758373840698,-3800.3894908,0.00019997,2]
[386543531,1758373840707,-171.04867459,0.0002,2]
[386543532,1758373840717,-151.0,0.0002,2]
[386543533,1758373840726,-500.0,0.0002,2]
[386543534,1758373840735,-10604.80653485,0.0002,2]
[386543535,1758373840744,-488645.4389106,0.0002,2]
[386543536,1758373840754,-45123.95697617,0.0002,2]
[386543537,1758373840765,-2191809.03311881,0.0002,2]
[386543538,1758373840774,-192318.90655748,0.0002,2]
[386543542,1758373843241,-295.11892219,0.0002,2]
[386543543,1758373843254,-901.14,0.0002,2]
[386543555,1758373845886,-555.60545949,0.0002,2]
[386543556,1758373846108,-728.98965166,0.0002,2]
[386543557,1758373846173,-3688.4491629,0.0002,2]
[386543558,1758373846186,-7161.831698,0.0002,2]
[386543559,1758373846270,-14768.12384758,0.0002,2]
[386543605,1758373922039,-229.08,0.00019308,3]
[386543606,1758373929264,-223.82474744,0.00019308,3]
[386543723,1758374026745,150.0,0.00018,2]
[386543724,1758374027043,150.0,0.0001918,2]
[386543742,1758374122582,400.0,0.00030136,120]
[386543836,1758374329245,2375.37,0.00019065,2]
[386543837,1758374332109,1000.0,0.00019178,2]
[386543849,1758374374597,150.0,0.00019044,7]
[386543859,1758374381228,1879.68,0.00019024,2]
[386543880,1758374432698,2324.89,0.00019,2]
[386543903,1758374519393,2993.38,0.00030137,120]
[386543904,1758374542991,150.0,0.00018,2]
[386543905,1758374543317,150.0,0.0001918,2]
[386543949,1758374684879,172.72,0.00018993,2]
[386544019,1758374874651,18584.15593575,0.00018,2]
[386544076,1758374925387,2451.13701563,0.00015,2]
[386544080,1758374962114,1000.0,0.00019178,2]
[386544081,1758374963080,27791.98704862,0.00019,2]
[386544082,1758374963101,5522.31,0.00019,2]
[386544083,1758374963122,15000.0,0.00019,2]
[386544084,1758374963144,15000.0,0.00019,2]
[386544085,1758374963164,15000.0,0.00019,2]
[386544086,1758374963192,37936.87633213,0.00019,2]
[386544087,1758374963221,53618.0183867,0.00019,2]
[386544088,1758374963244,4765.25,0.00019,2]
[386544091,1758374969139,-2699.79094999,0.00019,2]
[386544094,1758374976048,-1178.0,0.00019,2]
[386544103,1758374983221,-1178.0,0.00019,2]
[386544112,1758374990289,-1249.63843707,0.00019,2]
[386544114,1758374997794,-400.0,0.00019,2]
[386544115,1758375005348,-400.0,0.00019,2]
[386544123,1758375012656,-400.0,0.00019,2]
[386544124,1758375020009,-423.77,0.00019,2]
[386544127,1758375028413,-210.0,0.00019,2]
[386544138,1758375032084,-83.21068327,0.00019,2]
[386544140,1758375032095,-49.87525256,0.00019308,3]
[386544141,1758375032104,-223.82474744,0.00019626,2]
[386544143,1758375032114,-362.23571684,0.00019726,2]
[386544145,1758375032201,-637.76428316,0.00019726,2]
[386544146,1758375032211,-104.39880368,0.00019751,2]
[386544147,1758375032224,-519.62300056,0.00019751,2]
[386544148,1758375032256,-4054.07204816,0.00019751,2]
[386544149,1758375032266,-4678.0938524,0.00019765,2]
[386544150,1758375032275,-1702.78028347,0.00019792,2]
[386544151,1758375032285,-1000.0,0.000198,2]
[386544154,1758375032579,-273.82214,0.000198,2]
[386544155,1758375032607,-4678.0938524,0.000198,2]
[386544157,1758375032617,-434.4596339,0.00019807,2]
[386544159,1758375032629,-765.5403661,0.00019807,2]
[386544161,1758375032638,-20645.72129198,0.00019808,2]
[386544163,1758375032647,-769.23196547,0.00019811,2]
[386544165,1758375032657,-4678.0938524,0.00019838,2]
[386544167,1758375032667,-4678.0938524,0.00019857,2]
[386544169,1758375032676,-4678.0938524,0.00019871,2]
[386544171,1758375032686,-166.6666667,0.0001988,2]
[386544173,1758375032697,-166.66666666,0.00019884,2]
[386544175,1758375032710,-4678.0938524,0.00019884,2]
[386544177,1758375032719,-2909.24677673,0.00019887,2]
[386544179,1758375032729,-166.66666666,0.00019888,2]
[386544182,1758375032740,-150.99,0.00019888,2]
[386544184,1758375032749,-9999.99,0.00019888,2]
[386544186,1758375032758,-9855.34,0.00019888,2]
[386544188,1758375032768,-4265.92,0.00019888,2]
[386544190,1758375032777,-166.66666666,0.00019892,2]
[386544191,1758375032786,-479.75435404,0.00019892,2]
[386544194,1758375032798,-520.23564596,0.00019892,2]
[386544196,1758375032809,-21.23721705,0.00019892,2]
[386544204,1758375032872,-264.380006,0.00019892,2]
[386544212,1758375032947,-322.21270611,0.00019892,2]
[386544217,1758375032992,-2110.1653316,0.00019892,2]
[386544329,1758375038125,-225.47319869,0.00019891,2]
[386544330,1758375038135,-500.0,0.00019891,2]
[386544331,1758375038145,-205.28494614,0.00019891,2]
[386544332,1758375038154,-234.22390906,0.00019891,2]
[386544333,1758375038164,-6653.05473924,0.00019892,2]
[386544334,1758375038174,-166.66666666,0.00019896,2]
[386544335,1758375038191,-191.74157136,0.000199,2]
[386544336,1758375038201,-273.82215,0.000199,2]
[386544337,1758375038211,-166.66666666,0.000199,2]
[386544338,1758375038220,-2041.0,0.000199,2]
[386544339,1758375038230,-322.6107,0.00019968,2]
[386544340,1758375038240,-200.0,0.00019968,2]
[386544341,1758375038249,-200.0,0.00019968,2]
[386544342,1758375038259,-150.99,0.00019968,2]
[386544343,1758375038270,-2744.235028,0.00019968,2]
[386544344,1758375038281,-373.57020428,0.00019968,2]
[386544345,1758375038307,-6005.30467365,0.00019968,2]
[386544346,1758375038323,-876.88009407,0.00019968,2]
[386544347,1758375038332,-196.89,0.0001997,2]
[386544348,1758375038341,-196.89,0.0001997,2]
[386544349,1758375038350,-196.89,0.0001997,2]
[386544350,1758375038361,-196.89,0.0001997,2]
[386544351,1758375038370,-196.89,0.0001997,2]
[386544352,1758375038379,-500.0,0.00019973,2]
[386544353,1758375038388,-500.0,0.00019973,2]
[386544354,1758375038398,-500.0,0.00019973,2]
[386544355,1758375038407,-500.0,0.00019973,2]
[386544356,1758375038417,-271.22676943,0.00019973,2]
[386544357,1758375038426,-500.0,0.00019973,2]
[386544358,1758375038435,-482.38630851,0.00019973,2]
[386544359,1758375038444,-513.85978794,0.00019973,2]
[386544361,1758375038454,-500.0,0.00019973,2]
[386544363,1758375038463,-500.0,0.00019973,2]
[386544365,1758375038473,-500.0,0.00019973,2]
[386544366,1758375038483,-500.0,0.00019973,2]
[386544367,1758375038493,-174.05135132,0.00019973,2]
[386544368,1758375038503,-500.0,0.00019973,2]
[386544369,1758375038512,-485.69709021,0.00019973,2]
[386544370,1758375038522,-500.0,0.00019973,2]
[386544371,1758375038532,-500.0,0.00019973,2]
[386544372,1758375038542,-500.0,0.00019973,2]
[386544373,1758375038552,-500.0,0.00019973,2]
[386544374,1758375038561,-502.96349876,0.00019973,2]
[386544375,1758375038571,-500.0,0.00019973,2]
[386544376,1758375038580,-500.0,0.00019973,2]
[386544377,1758375038590,-151.0,0.00019977,2]
[386544378,1758375038600,-151.0,0.00019977,2]
[386544379,1758375038610,-1369.28766943,0.00019979,5]
[386544380,1758375038620,-1369.28766944,0.00019979,5]
[386544381,1758375038629,-53.60399651,0.00019979,2]
[386544382,1758375038642,-129.33800349,0.00019979,2]
[386544383,1758375038651,-3964.54199651,0.0001998,2]
[386544384,1758375038662,-4609.97181686,0.0001998,2]
[386544385,1758375038673,-452.11000654,0.0001998,2]
[386544386,1758375038693,-1715.10916784,0.0001998,2]
[386544390,1758375040061,-1039671.14884665,0.0001998,2]
[386544391,1758375040070,-2379.29176067,0.0001998,2]
[386544392,1758375040080,-500.0,0.0001998,2]
[386544393,1758375040090,-463.75054132,0.00019989,2]
[386544394,1758375040099,-151.0,0.00019989,2]
[386544395,1758375040108,-463.75054132,0.0001999,2]
[386544396,1758375040117,-463.75054132,0.0001999,2]
[386544397,1758375040127,-151.0,0.00019997,2]
[386544398,1758375040137,-151.0,0.00019997,2]
[386544399,1758375040146,-300.0,0.00019999,2]
[386544400,1758375040158,-23179.4990027,0.00019999,2]
[386544401,1758375040169,-99476.1181581,0.00019999,2]
[386544402,1758375040180,-6122.2175413,0.00019999,2]
[386544403,1758375040191,-151.2659862,0.00019999,2]
[386544404,1758375040200,-500.0,0.00019999,2]
[386544405,1758375040209,-483.0,0.00019999,2]
[386544406,1758375040220,-729.0,0.00019999,2]
[386544407,1758375040230,-150.0,0.00019999,2]
[386544408,1758375040240,-2813.0,0.00019999,2]
[386544409,1758375040250,-150.0,0.00019999,2]
[386544410,1758375040262,-150.0,0.00019999,2]
[386544411,1758375040272,-500.0,0.00019999,2]
[386544412,1758375040281,-499.0,0.00019999,2]
[386544413,1758375040290,-150.0,0.00019999,2]
[386544414,1758375040300,-500.0,0.00019999,2]
[386544415,1758375040309,-150.0,0.00019999,2]
[386544416,1758375040319,-150.0,0.00019999,2]
[386544417,1758375040328,-150.0,0.00019999,2]
[386544418,1758375040338,-912.0,0.00019999,2]
[386544419,1758375040348,-1057.0,0.00019999,2]
[386544420,1758375040358,-568.0,0.00019999,2]
[386544421,1758375040367,-500.0,0.00019999,2]
[386544422,1758375040376,-150.0,0.00019999,2]
[386544423,1758375040385,-500.0,0.00019999,2]
[386544424,1758375040397,-150.0,0.00019999,2]
[386544425,1758375040406,-150.0,0.00019999,2]
[386544426,1758375040416,-500.0,0.00019999,2]
[386544427,1758375040425,-150.0,0.00019999,2]
[386544428,1758375040435,-150.0,0.00019999,2]
[386544429,1758375040444,-150.0,0.00019999,2]
[386544430,1758375040454,-153.27379641,0.00019999,2]
[386544431,1758375040463,-150.0,0.00019999,2]
[386544432,1758375040472,-470.0,0.00019999,2]
[386544433,1758375040482,-150.0,0.00019999,2]
[386544434,1758375040491,-176.56522233,0.00019999,2]
[386544435,1758375040500,-500.0,0.00019999,2]
[386544436,1758375040510,-500.0,0.00019999,2]
[386544438,1758375040519,-150.0,0.00019999,2]
[386544440,1758375040528,-484.0,0.00019999,2]
[386544442,1758375040536,-151.0,0.0002,2]
[386544443,1758375040546,-197.21115095,0.0002,2]
[386544445,1758375040555,-5428.20433007,0.0002,2]
[386544447,1758375040565,-244322.7194553,0.0002,2]
[386544449,1758375040574,-4000.0,0.0002,4]
[386544450,1758375040584,-2035411.08636037,0.0002,2]
[386544451,1758375040883,-1173.741798,0.0002,2]
[386544452,1758375040914,-11002.6741459,0.0002,2]
[386544456,1758375043464,-151.0,0.0002,2]
[386544457,1758375043474,-6875.3173991,0.0002,2]
[386544458,1758375043521,-343.4,0.0002,2]
[386544459,1758375043579,-3635.30484844,0.0002,2]
[386544475,1758375046665,-157.83123908,0.00019891,2]
[386544476,1758375046674,-150.0,0.00019999,2]
[386544477,1758375046684,-200.0,0.00019999,2]
[386544478,1758375046694,-181.10817498,0.0002,2]
[386544479,1758375046721,-2337.24999236,0.0002,2]
[386544481,1758375046806,-557.60303608,0.00019791,2]
[386544482,1758375046817,-76.91823089,0.00019791,2]
[386544483,1758375046827,-150.0,0.00019999,2]
[386544484,1758375046836,-842.11681468,0.0002,2]
[386544485,1758375046943,-577.56145244,0.0002,2]
[386544486,1758375046983,-151.25,0.00019989,2]
[386544487,1758375046992,-5285.4844697,0.0002,2]
[386544491,1758375063815,150.0,0.00018,2]
[386544502,1758375083612,-153.62,0.00019166,2]
[386544508,1758375128340,5210.45222692,7.945e-05,2]
[386544509,1758375128362,4629.24904808,7.945e-05,2]
[386544512,1758375175308,-38.28,0.00019166,2]
[386544513,1758375175353,-150.0,0.0001918,2]
[386544514,1758375176875,-23.44,0.00019399,2]
[386544515,1758375182976,-400.0,0.00019399,2]
[386544517,1758375190058,-400.0,0.00019399,2]
[386544528,1758375322219,167.35,0.00015184,2]
[386544532,1758375344167,282.44,0.0001897,2]
[386544546,1758375497850,281.41317884,0.00018836,2]
[386544547,1758375497873,718.58682116,0.00018836,2]
[386544548,1758375530125,-150.0,0.00019258,2]
[386544550,1758375537000,-150.0,0.00019164,2]
[386544551,1758375550957,-1.0,0.00019164,2]
[386544552,1758375551025,-1972.13,0.00019211,2]
[386544556,1758375558732,-151.0,0.00019132,2]
[386544557,1758375558806,-98.0,0.00019211,2]
[386544558,1758375566892,-400.0,0.00019211,2]
[386544560,1758375569930,171.17,0.00018818,2]
[386544561,1758375573607,-151.0,0.00019125,2]
[386544562,1758375573640,-29.87,0.00019211,2]
[386544563,1758375573694,-1.0,0.00019258,2]
[386544564,1758375573970,-36.26,0.00019344,2]
[386544566,1758375579519,150.0,0.000189,2]
[386544567,1758375580853,-168.0,0.00019312,2]
[386544568,1758375580969,-64.0,0.00019344,2]
[386544570,1758375588947,-151.0,0.00019121,2]
[386544571,1758375589309,-136.85,0.00019344,2]
[386544573,1758375595043,-414.03,0.00019344,2]
[386544574,1758375602115,-400.0,0.00019178,2]
[386544576,1758375609298,-400.03,0.00019178,2]
[386544578,1758375611561,873.86,0.00018821,2]
[386544581,1758375617089,-199.97,0.00019178,2]
[386544582,1758375617140,-265.48,0.00019261,2]
[386544587,1758375624734,-19.69044621,0.00019261,2]
[386544588,1758375624786,-360.61910758,0.00019344,2]
[386544589,1758375628793,250.0,0.00018825,2]
[386544590,1758375632111,171.59,0.00018828,2]
[386544600,1758375633154,-500.0,0.00019344,2]
[386544622,1758375638984,-500.0,0.00019344,2]
[386544625,1758375646359,-400.0,0.00019344,2]
[386544627,1758375706280,1000.0,0.00018823,2]
[386544628,1758375719492,-215.92,0.000193,7]
[386544633,1758375725572,-84.08,0.000193,7]
[386544635,1758375725753,-331.84,0.000194,7]
[386544637,1758375732818,-350.0,0.000194,7]
[386544638,1758375733934,581.88,0.00018821,2]
[386544640,1758375737707,500.0,0.00013699,2]
[386544641,1758375739937,169.075507,0.00018576,7]
[386544675,1758375795625,-198.2816064,0.00019247,2]
[386544761,1758375833714,943.36540576,0.00018811,2]
[386544762,1758375833736,5360.45222692,0.00018811,2]
[386544763,1758375833758,5360.45222692,0.00018811,2]
[386544764,1758375833780,5360.45222692,0.00018811,2]
[386544765,1758375833802,1111.54791348,0.00018811,2]
[386544776,1758375917759,150.0,0.00018,2]
[386544777,1758375917825,150.0,0.00018667,2]
[386544778,1758375918061,150.0,0.00018,2]
[386544779,1758375918102,150.0,0.00018667,2]
[386544780,1758375918286,150.0,0.00018,2]
[386544781,1758375918333,150.0,0.00018667,2]
[386544782,1758375922290,150.0,0.00018,2]
[386544783,1758375922336,150.0,0.00018667,2]
[386544784,1758375923663,312.71,0.00018809,2]
[386544785,1758375925264,-150.0,0.00019333,4]
[386544786,1758375925294,-50.0,0.00019333,4]
[386544787,1758375925527,-100.0,0.00019333,4]
[386544788,1758375925700,151.26359169,0.00018,2]
[386544789,1758375926009,150.0,0.00018,2]
[386544790,1758375926174,150.0,0.00018,2]
[386544791,1758375926404,150.0,0.00018,2]
[386544792,1758375929818,150.0,0.00018,2]
[386544793,1758375932654,-57.51832788,0.00019,2]
[386544794,1758375932681,-92.48167212,0.00019,2]
[386544798,1758375935082,150.0,0.00018,2]
[386544806,1758375938571,150.0,0.00018,2]
[386544807,1758375938653,150.0,0.00018,2]
[386544808,1758375938783,150.0,0.00018,2]
[386544809,1758375938815,150.0,0.00018,2]
[386544810,1758375939305,150.0,0.00018,2]
[386544812,1758375941407,150.0,0.00018,2]
[386544813,1758375941761,150.0,0.00018667,2]
[386544817,1758375942918,150.0,0.00018,2]
[386544819,1758375942976,150.0,0.000185,2]
[386544824,1758375948902,-150.0,0.00019,2]
[386544825,1758375948942,-120.0,0.00019,2]
[386544831,1758375957353,-150.0,0.00019333,4]
[386544832,1758375958232,-71.11078089,0.00019333,4]
[386544835,1758375965105,-30.0,0.00019,2]
[386544836,1758375965159,-101.17248176,0.00019,2]
[386544837,1758375972953,-48.82751824,0.00019,2]
[386544838,1758375972993,-304.15711202,0.00019,2]
[386544841,1758375981681,800.0,0.00030136,120]
[386544844,1758375988647,-373.85950182,0.00019,2]
[386544845,1758375994539,160.75,0.00016712,2]
[386544968,1758376034815,324.18072175,0.00018803,2]
[386544969,1758376034839,285.81927825,0.00018803,2]
[386544970,1758376045028,-200.0,0.000193,7]
[386544971,1758376045343,-100.0,0.000193,7]
[386544973,1758376052673,-33.69282813,0.00019,2]
[386544974,1758376052723,-1259.07589536,0.00019247,2]
[386544975,1758376060468,-500.0,0.000194,7]
[386544976,1758376068878,-400.0,0.00019247,2]
[386544979,1758376094772,150.0,0.000189,2]
[386544980,1758376099068,-11.78274824,0.00019247,2]
[386544981,1758376099155,-194.32894255,0.00019247,2]
[386544982,1758376104648,756.99,9.38e-05,2]
[386544983,1758376104876,756.99,9.873e-05,2]
[386544984,1758376105095,756.99,0.00010367,2]
[386544985,1758376105311,756.99,0.00010861,2]
[386544986,1758376105562,756.99,0.00011354,2]
[386544987,1758376105727,756.99,0.00011848,2]
[386544988,1758376105933,382.69294867,0.00012342,2]
[386544989,1758376105957,374.29705133,0.00012342,2]
[386544990,1758376106152,756.99,0.00012835,2]
[386544991,1758376106365,756.99,0.00013329,2]
[386544992,1758376106580,756.99,0.00013823,2]
[386544993,1758376106789,756.99,0.00014316,2]
[386544994,1758376107015,756.99,0.0001481,2]
[386544995,1758376107424,756.99,0.00015304,2]
[386544996,1758376107648,444.21517559,0.00015797,2]
[386544997,1758376107672,312.77482441,0.00015797,2]
[386544998,1758376107866,756.99,0.00016291,2]
[386544999,1758376108077,756.99,0.00016785,2]
[386545000,1758376108292,756.99,0.00017278,2]
[386545001,1758376108506,756.99,0.00017772,2]
[386545003,1758376109913,756.99,0.00018266,2]
[386545004,1758376110002,756.99,0.00018759,2]
[386545044,1758376178936,402.1,0.00030137,120]
[386545047,1758376204884,-734.99544145,0.00019178,2]
[386545060,1758376213316,-200.0,0.00019178,2]
[386545102,1758376232416,-65.00455855,0.00019178,2]
[386545103,1758376232426,-55.67105745,0.00019247,2]
[386545104,1758376232435,-17.6383936,0.00019247,2]
[386545105,1758376232445,-78.88921911,0.00019333,4]
[386545106,1758376232454,-150.0,0.00019333,4]
[386545107,1758376232464,-151.0,0.00019344,2]
[386545108,1758376232473,-100.0,0.000194,7]
[386545109,1758376232484,-150.0,0.000195,4]
[386545110,1758376232494,-900.0,0.000195,7]
[386545111,1758376232503,-247.74,0.00019535,2]
[386545112,1758376232513,-1200.0,0.00019559,2]
[386545113,1758376232522,-500.0,0.0001956,2]
[386545114,1758376232532,-500.0,0.0001956,2]
[386545115,1758376232542,-500.0,0.0001956,2]
[386545116,1758376232551,-500.0,0.0001956,2]
[386545117,1758376232561,-500.0,0.0001956,2]
[386545118,1758376232570,-328.39406682,0.0001956,2]
[386545119,1758376232579,-526.10448529,0.0001956,2]
[386545120,1758376232589,-9999.99,0.0001956,2]
[386545121,1758376232599,-9999.99,0.0001956,2]
[386545122,1758376232608,-150.99,0.0001956,2]
[386545123,1758376232618,-993.02,0.0001956,2]
[386545124,1758376232627,-4949.96836693,0.00019561,2]
[386545125,1758376232639,-6463.04185527,0.00019561,2]
[386545126,1758376232674,-666.0,0.00019561,2]
[386545127,1758376232686,-853.69401967,0.00019561,2]
[386545128,1758376232698,-1037.62012203,0.00019561,2]
[386545129,1758376232709,-547.40674988,0.00019561,2]
[386545130,1758376232749,-3660.0,0.00019561,2]
[386545131,1758376232762,-669.17874609,0.00019561,2]
[386545132,1758376232804,-782.59605814,0.00019561,2]
[386545346,1758376238412,-1698.46880269,0.00019561,2]
[386545347,1758376238423,-711.34,0.00019561,2]
[386545348,1758376238432,-174.06,0.00019581,2]
[386545349,1758376238442,-458.23511731,0.000196,2]
[386545350,1758376238484,-308.66488269,0.000196,2]
[386545351,1758376238494,-1200.0,0.000196,7]
[386545352,1758376238503,-151.0,0.00019688,2]
[386545353,1758376238512,-151.0,0.00019688,2]
[386545354,1758376238523,-322.6107,0.00019688,2]
[386545355,1758376238535,-151.0,0.00019688,2]
[386545356,1758376238546,-52.17341731,0.00019688,2]
[386545357,1758376238596,-98.82658269,0.00019688,2]
[386545358,1758376238609,-243.30120936,0.00019688,2]
[386545359,1758376238619,-151.0,0.00019688,2]
[386545360,1758376238629,-160.0,0.00019688,2]
[386545361,1758376238640,-151.0,0.00019688,2]
[386545362,1758376238650,-151.0,0.00019688,2]
[386545363,1758376238661,-151.0,0.00019688,2]
[386545364,1758376238670,-151.0,0.00019688,2]
[386545365,1758376238680,-151.0,0.00019688,2]
[386545366,1758376238689,-200.0,0.00019688,2]
[386545367,1758376238698,-151.0,0.00019688,2]
[386545368,1758376238708,-151.0,0.00019688,2]
[386545369,1758376238719,-151.0,0.00019688,2]
[386545370,1758376238730,-721.12765535,0.00019688,2]
[386545371,1758376238740,-200.0,0.00019688,2]
[386545372,1758376238749,-151.0,0.00019688,2]
[386545373,1758376238759,-7965.41053268,0.00019688,2]
[386545374,1758376238768,-151.0,0.00019688,2]
[386545375,1758376238777,-151.0,0.00019688,2]
[386545376,1758376238786,-151.0,0.00019688,2]
[386545377,1758376238795,-151.0,0.00019688,2]
[386545378,1758376238804,-151.0,0.00019688,2]
[386545379,1758376238813,-151.0,0.00019688,2]
[386545380,1758376238823,-207.4,0.00019688,2]
[386545381,1758376238832,-500.0,0.00019699,2]
[386545382,1758376238850,-250.81219037,0.00019699,2]
[386545383,1758376238866,-182.56428359,0.00019699,2]
[386545384,1758376238876,-2578.30093182,0.000197,2]
[386545385,1758376238885,-1000.0,0.000197,2]
[386545386,1758376238895,-800.0,0.000197,2]
[386545387,1758376238905,-174.89,0.000197,2]
[386545388,1758376238915,-1500.0,0.000197,7]
[386545389,1758376238925,-170.47,0.000197,2]
[386545390,1758376238934,-1000.0,0.00019726,2]
[386545391,1758376238943,-1000.0,0.0001974,2]
[386545392,1758376238953,-8260.13072239,0.00019743,2]
[386545393,1758376238962,-168.0,0.00019744,2]
[386545394,1758376238971,-1425.0,0.00019746,2]
[386545395,1758376238980,-150.0,0.00019746,2]
[386545396,1758376238990,-1000.0,0.00019748,2]
[386545397,1758376239000,-168.0,0.0001975,2]
[386545398,1758376239010,-1000.0,0.00019776,2]
[386545399,1758376239020,-1425.0,0.00019777,2]
[386545400,1758376239030,-1000.0,0.0001978,2]
[386545401,1758376239039,-2500.0,0.0001978,2]
[386545402,1758376239048,-8789.76649007,0.0001978,2]
[386545403,1758376239058,-186.72544564,0.0001978,2]
[386545404,1758376239068,-8789.76649003,0.00019793,2]
[386545405,1758376239077,-1000.0,0.00019794,2]
[386545406,1758376239087,-1000.0,0.00019796,2]
[386545407,1758376239096,-8565.75555911,0.00019798,2]
[386545408,1758376239105,-1609.09,0.000198,2]
[386545409,1758376239114,-944.76,0.000198,2]
[386545410,1758376239124,-263.61894,0.000198,2]
[386545411,1758376239133,-300.0,0.000198,7]
[386545412,1758376239144,-7860.16501002,0.00019807,2]
[386545413,1758376239173,-929.60148001,0.00019807,2]
[386545414,1758376239182,-1000.0,0.00019811,2]
[386545415,1758376239191,-151.66294923,0.00019817,2]
[386545416,1758376239201,-8789.76649003,0.0001982,2]
[386545417,1758376239211,-6435.7420105,0.00019833,2]
[386545418,1758376239222,-2354.02447953,0.00019833,2]
[386545419,1758376239232,-186.72544564,0.0001984,2]
[386545420,1758376239241,-8789.76649003,0.00019847,2]
[386545421,1758376239250,-823.46459212,0.00019851,2]
[386545422,1758376239260,-8882.6885148,0.00019853,2]
[386545423,1758376239270,-8789.76649003,0.0001986,2]
[386545424,1758376239279,-8789.76649003,0.00019873,2]
[386545425,1758376239288,-7790.0199,0.0001988,2]